bitfinex/quotes_SOLUSD_20241115
["timestamp","ask_amount","ask_price","bid_price","bid_amount"]
[1731640181898,37.40622808,209.45,209.38,13.62934408]
[1731640182590,20.0,209.44,209.38,13.62934408]
[1731640183096,13.62934408,209.43,209.36,13.62934408]
[1731640183293,13.62934408,209.42,209.35,13.62934408]
[1731640183912,20.0,209.44,209.36,13.62934408]
[1731640183913,13.62934408,209.43,209.36,13.62934408]
[1731640184297,13.62934408,209.42,209.34,13.62934408]
[1731640185610,13.62934408,209.42,209.35,13.62934408]
[1731640186107,13.62934408,209.43,209.36,13.62934408]
[1731640187815,13.62934408,209.42,209.35,13.62934408]
[1731640188913,8.75660275,209.42,209.35,8.75660275]
[1731640189122,24.7747,209.44,209.33,16.6184]
[1731640189295,8.75660275,209.38,209.33,16.6184]
[1731640189496,20.0,209.42,209.36,8.75660275]
[1731640190220,8.75660275,209.39,209.33,16.6184]
[1731640190520,24.7751,209.42,209.33,16.6184]
[1731640190521,8.75660275,209.41,209.34,8.75660275]
[1731640190723,20.0,209.4,209.34,8.75660275]
[1731640191222,20.0,209.42,209.36,8.75660275]
[1731640191720,8.75660275,209.41,209.33,16.6184]
[1731640192021,8.75660275,209.41,209.34,8.75660275]
[1731640192223,28.75660275,209.42,209.34,8.75660275]
[1731640193907,8.75660275,209.39,209.33,16.6184]
[1731640196323,24.7755,209.4,209.33,16.6184]
[1731640196625,8.75660275,209.39,209.33,16.6184]
[1731640197709,8.75660275,209.36,209.33,16.6184]
[1731640198328,8.75660275,209.35,209.33,16.6184]
[1731640198525,8.75660275,209.35,209.28,24.33083815]
[1731640198830,4.776,209.38,209.28,15.5742354]
[1731640198831,8.75660275,209.34,209.28,15.5742354]
[1731640199130,8.75660275,209.35,209.28,24.33083815]
[1731640201423,8.75660275,209.34,209.28,15.5742354]
[1731640202324,8.75660275,209.35,209.28,24.33083815]
[1731640202521,8.75660275,209.36,209.29,8.75660275]
[1731640203410,20.0,209.36,209.3,8.75660275]
[1731640203725,8.75660275,209.38,209.31,8.75660275]
[1731640204314,161.6,209.4,209.33,8.75660275]
[1731640204633,6.1412,209.49,209.35,8.75660275]
[1731640204634,8.75660275,209.42,209.35,8.75660275]
[1731640204926,4.7746,209.44,209.29,8.75660275]
[1731640204927,8.75660275,209.36,209.29,8.75660275]
[1731640206310,8.75660275,209.37,209.3,8.75660275]
[1731640206517,8.75660275,209.38,209.31,8.75660275]
[1731640207625,8.75660275,209.37,209.3,8.75660275]
[1731640210334,8.75660275,209.38,209.3,8.75660275]
[1731640213428,13.53260275,209.38,209.3,8.75660275]
[1731640213727,43.776884,209.44,209.31,8.88209275]
[1731640213937,20.0,209.38,209.31,8.88209275]
[1731640214435,20.0,209.38,209.33,8.75660275]
[1731640214631,8.75660275,209.4,209.33,8.75660275]
[1731640214838,20.0,209.4,209.33,8.75660275]
[1731640215038,20.0,209.4,209.34,8.75660275]
[1731640215331,8.75660275,209.39,209.31,8.75660275]
[1731640215514,8.75660275,209.38,209.31,8.75660275]
[1731640215842,8.75660275,209.35,209.28,15.5742354]
[1731640216056,8.75660275,209.35,209.28,24.33083815]
[1731640216208,8.75660275,209.34,209.28,15.5742354]
[1731640217237,161.6,209.39,209.28,15.5742354]
[1731640217432,8.75660275,209.35,209.28,24.33083815]
[1731640217913,8.75660275,209.34,209.28,15.5742354]
[1731640218331,8.75660275,209.33,209.28,15.5742354]
[1731640218738,8.75660275,209.32,209.28,15.5742354]
[1731640219736,8.75660275,209.31,209.28,15.5742354]
[1731640219936,23.776884,209.33,209.28,15.5742354]
[1731640220115,8.75660275,209.31,209.28,15.5742354]
[1731640220311,8.75660275,209.29,209.28,15.5742354]
[1731640220628,52.53348675,209.29,209.28,0.4822354]
[1731640222126,57.31148675,209.29,209.28,0.4822354]
[1731640223016,43.776884,209.29,209.28,0.4822354]
[1731640223217,4.7772,209.33,209.28,9.23883815]
[1731640223429,4.7768,209.35,209.28,9.23883815]
[1731640223637,8.75660275,209.34,209.28,9.23883815]
[1731640223833,8.75660275,209.34,209.28,0.4822354]
[1731640224239,8.75660275,209.34,209.28,16.6274354]
[1731640225041,20.0,209.33,209.28,16.6274354]
[1731640226246,8.75660275,209.37,209.3,8.75660275]
[1731640226827,4.7753,209.41,209.31,13.69005864]
[1731640227139,13.79005864,209.33,209.28,0.4822354]
[1731640227449,13.69005864,209.3,209.21,16.1405]
[1731640227749,13.69005864,209.22,209.21,16.1405]
[1731640228242,20.0,209.26,209.21,16.1405]
[1731640228415,43.776884,209.24,209.21,16.1405]
[1731640228839,33.69005864,209.24,209.21,16.1405]
[1731640229345,13.69005864,209.24,209.21,16.1405]
[1731640230247,13.69005864,209.22,209.16,22.2175]
[1731640230453,13.69005864,209.23,209.16,35.90755864]
[1731640230932,13.69005864,209.23,209.16,22.2175]
[1731640231465,13.69005864,209.22,209.16,22.2175]
[1731640234440,13.69005864,209.22,209.16,35.90755864]
[1731640236232,13.69005864,209.24,209.17,0.12549]
[1731640236547,13.69005864,209.27,209.19,13.69005864]
[1731640237050,13.69005864,209.26,209.2,0.12549]
[1731640237434,4.7771,209.33,209.2,0.12549]
[1731640237435,13.69005864,209.27,209.2,13.69005864]
[1731640237751,13.45005864,209.27,209.2,13.69005864]
[1731640239139,13.69005864,209.3,209.22,28.78455864]
[1731640239534,13.69005864,209.29,209.22,28.78455864]
[1731640242657,13.69005864,209.3,209.22,28.78455864]
[1731640243157,13.69005864,209.29,209.22,28.78455864]
[1731640243563,13.69005864,209.29,209.23,0.12549]
[1731640245858,13.69005864,209.28,209.23,0.12549]
[1731640247045,13.69005864,209.29,209.23,0.12549]
[1731640249648,13.69005864,209.25,209.22,15.0945]
[1731640249971,13.69005864,209.23,209.22,15.0945]
[1731640250140,23.776884,209.22,209.17,15.5144]
[1731640250446,13.69005864,209.18,209.17,15.5144]
[1731640251267,13.69005864,209.2,209.17,15.5144]
[1731640254165,13.69005864,209.19,209.17,15.5144]
[1731640254554,13.69005864,209.18,209.17,15.5144]
[1731640256558,18.47055864,209.18,209.17,15.5144]
[1731640256749,13.69005864,209.18,209.17,15.5144]
[1731640257355,13.69005864,209.18,209.11,27.36106012]
[1731640258380,13.69005864,209.18,209.12,0.12549]
[1731640259565,13.69005864,209.18,209.12,13.81554864]
[1731640260275,13.69005864,209.2,209.13,13.69005864]
[1731640260479,13.69005864,209.21,209.14,13.81554864]
[1731640260772,13.69005864,209.22,209.15,13.69005864]
[1731640260975,13.69005864,209.21,209.14,13.69005864]
[1731640261146,13.69005864,209.2,209.13,13.69005864]
[1731640262167,4.7795,209.23,209.14,13.69005864]
[1731640262168,13.69005864,209.21,209.14,13.69005864]
[1731640262754,8.77413698,209.21,209.14,8.77413698]
[1731640262955,8.77413698,209.22,209.15,8.77413698]
[1731640263881,8.77413698,209.21,209.14,8.77413698]
[1731640265078,8.77413698,209.19,209.12,8.77413698]
[1731640265268,8.77413698,209.2,209.13,8.77413698]
[1731640265464,8.77413698,209.2,209.14,0.12549]
[1731640266682,8.77413698,209.19,209.11,13.65788566]
[1731640266988,8.77413698,209.18,209.12,0.12549]
[1731640267192,8.77413698,209.18,209.12,8.89962698]
[1731640268090,8.77413698,209.2,209.13,8.77413698]
[1731640268963,8.77413698,209.2,209.12,0.12549]
[1731640268964,8.77413698,209.19,209.12,8.89962698]
[1731640269577,8.77413698,209.18,209.12,8.89962698]
[1731640270084,8.77413698,209.18,209.12,0.12549]
[1731640270377,4.7801,209.2,209.12,8.89962698]
[1731640270586,8.77413698,209.19,209.12,8.89962698]
[1731640271882,8.77413698,209.19,209.11,6.2797]
[1731640271883,8.77413698,209.18,209.11,15.05383698]
[1731640272061,8.77413698,209.17,209.11,6.2797]
[1731640272559,8.77413698,209.2,209.13,8.77413698]
[1731640272872,8.77413698,209.19,209.12,0.12549]
[1731640273077,8.77413698,209.19,209.12,8.89962698]
[1731640276889,8.77413698,209.2,209.13,8.77413698]
[1731640277464,13.55403698,209.21,209.14,8.77413698]
[1731640277672,20.0,209.2,209.14,8.77413698]
[1731640280291,28.77413698,209.2,209.13,8.77413698]
[1731640280499,8.77413698,209.24,209.17,8.77413698]
[1731640280682,13.55303698,209.25,209.18,25.41923698]
[1731640281168,13.55303698,209.25,209.19,8.77413698]
[1731640281896,4.7789,209.25,209.19,8.77413698]
[1731640282189,8.77413698,209.25,209.19,8.77413698]
[1731640282792,8.77413698,209.26,209.19,8.77413698]
[1731640284270,8.77413698,209.27,209.21,8.77413698]
[1731640284470,8.77413698,209.28,209.21,8.77413698]
[1731640284975,13.55233698,209.29,209.22,8.77413698]
[1731640285177,161.6,209.36,209.27,8.77413698]
[1731640285378,8.77413698,209.36,209.29,8.77413698]
[1731640285695,8.77413698,209.35,209.29,8.77413698]
[1731640286077,8.77413698,209.37,209.3,8.77413698]
[1731640286279,4.7748,209.43,209.34,8.77413698]
[1731640286488,8.77413698,209.41,209.34,8.77413698]
[1731640286794,8.77413698,209.39,209.33,6.6235]
[1731640286992,8.77413698,209.4,209.33,15.39763698]
[1731640287171,4.7748,209.43,209.33,15.39763698]
[1731640287172,8.77413698,209.39,209.34,0.12549]
[1731640287373,8.77413698,209.41,209.34,8.89962698]
[1731640287595,13.54893698,209.43,209.36,8.77413698]
[1731640287801,8.77413698,209.42,209.36,8.77413698]
[1731640287976,8.77413698,209.41,209.34,8.89962698]
[1731640288497,8.77413698,209.42,209.35,8.77413698]
[1731640289103,8.77413698,209.41,209.34,8.89962698]
[1731640289280,8.77413698,209.41,209.35,8.77413698]
[1731640289480,32.55102098,209.42,209.35,8.77413698]
[1731640290883,32.55102098,209.42,209.34,0.12549]
[1731640291206,8.77413698,209.41,209.34,8.89962698]
[1731640291578,32.55102098,209.42,209.35,8.77413698]
[1731640291905,161.6,209.46,209.37,8.77413698]
[1731640292075,8.77413698,209.48,209.41,8.77413698]
[1731640292279,13.54763698,209.49,209.42,8.77413698]
[1731640292482,8.77413698,209.48,209.41,8.77413698]
[1731640293279,8.77413698,209.46,209.39,8.77413698]
[1731640293493,8.77413698,209.43,209.38,0.12549]
[1731640293693,8.77413698,209.41,209.38,0.12549]
[1731640293986,8.77413698,209.4,209.38,0.12549]
[1731640294283,161.6,209.47,209.38,0.12549]
[1731640294613,23.776884,209.45,209.38,0.12549]
[1731640294907,8.77413698,209.43,209.38,0.12549]
[1731640295077,8.77413698,209.44,209.38,0.12549]
[1731640295978,8.77413698,209.45,209.38,8.89962698]
[1731640296177,8.77413698,209.47,209.4,8.77413698]
[1731640296379,8.77413698,209.47,209.41,8.77413698]
[1731640296580,32.55102098,209.48,209.41,8.77413698]
[1731640296784,13.67581979,209.47,209.4,13.80130979]
[1731640297108,13.67581979,209.46,209.39,30.22301979]
[1731640299295,13.67581979,209.46,209.39,16.5472]
[1731640300000,13.67581979,209.47,209.4,13.67581979]
[1731640300380,13.67581979,209.46,209.39,30.22301979]
[1731640302027,37.45270379,209.48,209.41,20.26101979]
[1731640302180,20.0,209.49,209.43,13.67581979]
[1731640302383,13.67581979,209.5,209.43,13.67581979]
[1731640302802,13.67581979,209.53,209.46,13.67581979]
[1731640303498,13.67581979,209.54,209.47,13.80130979]
[1731640303681,13.67581979,209.56,209.49,13.67581979]
[1731640303890,13.67581979,209.57,209.49,13.67581979]
[1731640304197,13.67581979,209.57,209.5,13.80130979]
[1731640304515,13.67581979,209.59,209.52,13.67581979]
[1731640305308,13.67581979,209.62,209.55,13.67581979]
[1731640305508,13.67581979,209.65,209.58,13.67581979]
[1731640306004,13.67581979,209.66,209.59,13.67581979]
[1731640307110,37.45270379,209.67,209.59,13.67581979]
[1731640307310,37.45270379,209.67,209.56,15.3644]
[1731640307311,13.67581979,209.67,209.6,13.80130979]
[1731640308510,13.67581979,209.67,209.6,0.12549]
[1731640308726,13.67581979,209.66,209.6,0.12549]
[1731640309318,13.67581979,209.62,209.56,15.3644]
[1731640309887,13.67581979,209.63,209.56,15.3644]
[1731640310887,33.67581979,209.64,209.57,13.67581979]
[1731640311086,20.0,209.65,209.59,13.67581979]
[1731640311603,24.7687,209.7,209.6,0.12549]
[1731640311812,20.0,209.67,209.61,13.67581979]
[1731640312015,33.67581979,209.67,209.6,13.67581979]
[1731640312603,13.67581979,209.67,209.6,13.67581979]
[1731640312802,13.67581979,209.67,209.61,6.3474]
[1731640313100,13.67581979,209.68,209.61,20.02321979]
[1731640313306,13.67581979,209.66,209.61,6.3474]
[1731640314111,13.67581979,209.66,209.59,13.67581979]
[1731640314112,13.67581979,209.64,209.57,33.67581979]
[1731640314598,13.67581979,209.64,209.58,13.67581979]
[1731640314800,13.67581979,209.64,209.58,13.80130979]
[1731640314992,18.44551979,209.66,209.59,13.67581979]
[1731640315494,13.67581979,209.65,209.58,13.80130979]
[1731640316008,18.44551979,209.66,209.59,13.67581979]
[1731640316220,13.67581979,209.66,209.59,13.67581979]
[1731640316436,37.45270379,209.67,209.6,13.67581979]
[1731640316733,13.67581979,209.66,209.59,13.67581979]
[1731640320307,42.22210379,209.67,209.59,13.67581979]
[1731640320719,13.67581979,209.66,209.59,13.67581979]
[1731640320930,13.67581979,209.63,209.56,35.38761979]
[1731640321104,13.67581979,209.62,209.56,21.7118]
[1731640321309,13.67581979,209.58,209.56,15.3644]
[1731640321528,13.67581979,209.57,209.56,15.3644]
[1731640322121,13.67581979,209.57,209.51,6.5348]
[1731640322332,13.67581979,209.56,209.51,6.5348]
[1731640322538,13.67581979,209.58,209.51,20.21061979]
[1731640322701,13.67581979,209.57,209.51,6.5348]
[1731640322901,13.67581979,209.55,209.51,6.5348]
[1731640323103,13.67581979,209.54,209.51,6.5348]
[1731640325230,13.67581979,209.53,209.51,6.5348]
[1731640325810,13.67581979,209.54,209.51,6.5348]
[1731640327845,13.67581979,209.54,209.5,15.9859]
[1731640328063,13.67581979,209.51,209.5,15.9859]
[1731640328345,20.0,209.5,209.45,15.4338]
[1731640328519,13.67581979,209.46,209.45,15.4338]
[1731640328836,161.6,209.56,209.45,15.4338]
[1731640328837,13.67581979,209.49,209.45,15.4338]
[1731640329008,161.6,209.56,209.46,0.12549]
[1731640329208,13.67581979,209.53,209.46,13.80130979]
[1731640329938,13.67581979,209.54,209.47,13.67581979]
[1731640330115,13.67581979,209.57,209.51,13.67581979]
[1731640330310,13.67581979,209.58,209.51,13.67581979]
[1731640330536,18.44711979,209.59,209.52,13.67581979]
[1731640331039,13.67581979,209.57,209.5,13.67581979]
[1731640331238,13.67581979,209.56,209.49,13.67581979]
[1731640331449,13.67581979,209.55,209.48,13.67581979]
[1731640332335,13.67581979,209.57,209.5,13.67581979]
[1731640332516,28.547584,209.61,209.51,13.67581979]
[1731640332517,13.67581979,209.58,209.51,13.67581979]
[1731640333215,13.67581979,209.59,209.52,13.67581979]
[1731640333454,13.67581979,209.6,209.53,29.32781979]
[1731640334138,13.67581979,209.59,209.53,29.32781979]
[1731640337536,13.67581979,209.6,209.53,29.32781979]
[1731640339052,13.67581979,209.61,209.54,13.67581979]
[1731640339648,13.67581979,209.64,209.57,13.67581979]
[1731640340435,13.67581979,209.65,209.58,13.67581979]
[1731640340646,13.67581979,209.64,209.57,13.67581979]
[1731640340829,13.67581979,209.65,209.58,13.67581979]
[1731640341025,13.67581979,209.66,209.59,13.67581979]
[1731640341230,13.67581979,209.67,209.6,13.67581979]
[1731640342438,13.67581979,209.68,209.61,13.67581979]
[1731640344163,13.67581979,209.67,209.6,13.67581979]
[1731640344940,13.17581979,209.67,209.6,13.67581979]
[1731640346757,8.73630062,209.66,209.59,8.73630062]
[1731640346957,8.73630062,209.65,209.58,8.73630062]
[1731640347132,8.73630062,209.65,209.59,0.12549]
[1731640347552,8.73630062,209.64,209.57,28.73630062]
[1731640347858,8.73630062,209.65,209.58,8.86179062]
[1731640348337,4.7693,209.68,209.6,8.73630062]
[1731640348534,8.73630062,209.67,209.6,8.73630062]
[1731640350335,8.73630062,209.66,209.58,0.12549]
[1731640350541,8.73630062,209.66,209.59,8.73630062]
[1731640351446,8.73630062,209.67,209.6,8.73630062]
[1731640352045,8.73630062,209.67,209.59,8.73630062]
[1731640354474,8.73630062,209.67,209.6,8.73630062]
[1731640354975,8.73630062,209.66,209.59,8.73630062]
[1731640358172,8.73630062,209.67,209.6,8.73630062]
[1731640360252,8.73630062,209.68,209.61,8.73630062]
[1731640360875,8.73630062,209.67,209.59,8.73630062]
[1731640361065,4.7689,209.7,209.57,20.0]
[1731640361066,8.73630062,209.64,209.57,20.0]
[1731640361358,8.73630062,209.63,209.57,20.0]
[1731640361685,8.73630062,209.61,209.56,15.3741]
[1731640361978,8.73630062,209.58,209.56,15.3741]
[1731640363680,8.73630062,209.58,209.52,7.30579063]
[1731640363859,8.73630062,209.56,209.51,16.5785]
[1731640364373,4.7712,209.59,209.51,16.5785]
[1731640364682,8.73630062,209.57,209.51,16.5785]
[1731640366188,8.73630062,209.55,209.51,16.5785]
[1731640366366,8.73630062,209.57,209.51,16.5785]
[1731640367791,161.6,209.64,209.51,25.31480062]
[1731640367792,8.73630062,209.58,209.51,25.31480062]
[1731640368302,8.73630062,209.57,209.51,16.5785]
[1731640370672,8.73630062,209.58,209.51,25.31480062]
[1731640370876,8.73630062,209.59,209.51,25.31480062]
[1731640371073,8.73630062,209.58,209.51,25.31480062]
[1731640371673,8.73630062,209.55,209.51,16.5785]
[1731640371900,8.73630062,209.53,209.46,8.73630062]
[1731640372191,8.73630062,209.51,209.45,15.3795]
[1731640373209,8.73630062,209.52,209.45,24.11580062]
[1731640373409,8.73630062,209.54,209.47,8.73630062]
[1731640373703,28.73630062,209.53,209.46,16.03801497]
[1731640373881,28.73630062,209.53,209.45,15.3795]
[1731640373882,8.73630062,209.52,209.45,24.11580062]
[1731640375418,4.7718,209.57,209.47,8.73630062]
[1731640375711,8.73630062,209.57,209.5,8.73630062]
[1731640375907,8.73630062,209.59,209.52,8.73630062]
[1731640376118,8.73630062,209.6,209.53,8.73630062]
[1731640376479,8.73630062,209.58,209.51,8.73630062]
[1731640379505,33.50720062,209.61,209.53,8.73630062]
[1731640379687,28.73630062,209.59,209.51,8.73630062]
[1731640379888,8.73630062,209.58,209.51,8.73630062]
[1731640380217,8.73630062,209.55,209.46,20.0]
[1731640380429,8.73630062,209.55,209.47,8.73630062]
[1731640380716,181.6,209.59,209.51,8.73630062]
[1731640380922,8.73630062,209.58,209.51,8.73630062]
[1731640381819,8.73630062,209.57,209.5,8.73630062]
[1731640381987,8.73630062,209.58,209.51,8.73630062]
[1731640383408,20.0,209.62,209.52,8.73630062]
[1731640383618,8.73630062,209.62,209.55,8.73630062]
[1731640383815,4.7704,209.63,209.56,8.73630062]
[1731640384014,8.73630062,209.64,209.57,8.73630062]
[1731640384511,8.73630062,209.64,209.56,8.73630062]
[1731640384817,8.73630062,209.63,209.56,8.73630062]
[1731640387501,8.73630062,209.64,209.56,8.73630062]
[1731640389096,20.0,209.65,209.59,8.73630062]
[1731640389305,13.50580062,209.67,209.59,8.73630062]
[1731640389529,20.0,209.65,209.59,8.73630062]
[1731640390226,20.0,209.66,209.59,8.73630062]
[1731640390626,11.9194,209.75,209.63,25.01080062]
[1731640390824,96.0,209.8,209.65,8.73630062]
[1731640390825,8.73630062,209.72,209.65,8.73630062]
[1731640391072,8.73630062,209.74,209.67,8.73630062]
[1731640391341,8.73630062,209.74,209.63,16.2745]
[1731640391342,13.50400062,209.75,209.68,8.73630062]
[1731640391512,8.73630062,209.75,209.68,8.73630062]
[1731640392423,8.73630062,209.75,209.67,8.73630062]
[1731640392797,8.73630062,209.75,209.63,16.2745]
[1731640392798,13.64309588,209.73,209.65,13.64309588]
[1731640393427,13.64309588,209.73,209.66,13.64309588]
[1731640394133,13.64309588,209.72,209.65,13.64309588]
[1731640394641,13.64309588,209.73,209.66,13.64309588]
[1731640395553,13.64309588,209.72,209.65,13.64309588]
[1731640395729,13.64309588,209.71,209.64,13.64309588]
[1731640396553,37.41997988,209.72,209.65,13.64309588]
[1731640397137,42.18827988,209.72,209.65,13.64309588]
[1731640401143,20.0,209.74,209.68,13.64309588]
[1731640401357,20.0,209.74,209.7,13.64309588]
[1731640402156,33.64309588,209.76,209.69,13.64309588]
[1731640403843,43.776884,209.74,209.68,13.64309588]
[1731640404046,43.776884,209.74,209.63,16.2745]
[1731640404047,13.64309588,209.7,209.63,16.2745]
[1731640404354,13.64309588,209.69,209.63,16.2745]
[1731640405544,13.64309588,209.68,209.63,16.2745]
[1731640406139,13.64309588,209.67,209.63,16.2745]
[1731640406343,13.64309588,209.68,209.63,16.2745]
[1731640406537,13.64309588,209.69,209.63,16.2745]
[1731640406745,13.64309588,209.7,209.63,29.91759588]
[1731640407352,13.64309588,209.74,209.67,13.64309588]
[1731640407656,18.41089588,209.74,209.67,13.64309588]
[1731640407863,13.64309588,209.74,209.67,13.64309588]
[1731640408061,13.64309588,209.76,209.69,13.64309588]
[1731640408275,13.64309588,209.77,209.7,13.64309588]
[1731640410971,18.41029588,209.77,209.7,13.64309588]
[1731640411768,13.64309588,209.75,209.69,13.64309588]
[1731640411948,13.64309588,209.75,209.68,13.64309588]
[1731640413261,13.64309588,209.72,209.65,13.64309588]
[1731640413615,13.64309588,209.71,209.64,13.64309588]
[1731640413740,13.64309588,209.7,209.63,29.91759588]
[1731640413944,13.64309588,209.69,209.63,16.2745]
[1731640414154,13.64309588,209.68,209.63,16.2745]
[1731640414580,13.64309588,209.69,209.63,16.2745]
[1731640414753,13.64309588,209.7,209.63,29.91759588]
[1731640416149,13.64309588,209.71,209.64,13.64309588]
[1731640416561,13.64309588,209.7,209.63,29.91759588]
[1731640416757,8.73318075,209.7,209.63,25.00768075]
[1731640419765,8.73318075,209.66,209.59,20.0]
[1731640420074,4.7684,209.72,209.63,8.73318075]
[1731640420282,8.73318075,209.7,209.63,8.73318075]
[1731640421580,8.73318075,209.69,209.62,8.73318075]
[1731640421771,8.73318075,209.68,209.61,24.13738075]
[1731640425561,8.73318075,209.67,209.61,15.4042]
[1731640425794,8.73318075,209.64,209.61,15.4042]
[1731640425964,23.776884,209.68,209.61,15.4042]
[1731640426165,8.73318075,209.66,209.61,15.4042]
[1731640426470,8.73318075,209.64,209.61,15.4042]
[1731640426679,4.7698,209.66,209.54,13.59150627]
[1731640426680,8.73318075,209.62,209.55,24.56078075]
[1731640426990,8.73318075,209.6,209.55,15.8276]
[1731640428280,8.73318075,209.61,209.55,15.8276]
[1731640429383,8.73318075,209.56,209.55,15.8276]
[1731640429771,8.73318075,209.56,209.5,15.8276]
[1731640430269,8.73318075,209.54,209.5,15.8276]
[1731640430582,8.73318075,209.53,209.5,15.8276]
[1731640430888,8.73318075,209.52,209.47,19.088436]
[1731640431180,41.088723,209.6,209.47,19.088436]
[1731640431181,8.73318075,209.51,209.47,19.088436]
[1731640431398,8.73318075,209.51,209.45,15.8276]
[1731640431586,8.73318075,209.52,209.46,8.73318075]
[1731640431780,161.6,209.58,209.45,15.8276]
[1731640431781,43.776884,209.57,209.48,8.73318075]
[1731640431989,8.73318075,209.54,209.47,8.73318075]
[1731640432679,8.73318075,209.52,209.45,31.86353379]
[1731640432886,8.73318075,209.52,209.45,24.56078075]
[1731640433265,8.73318075,209.53,209.46,8.73318075]
[1731640433466,24.7713,209.59,209.48,8.73318075]
[1731640433667,8.73318075,209.57,209.5,8.73318075]
[1731640434189,8.73318075,209.57,209.51,8.73318075]
[1731640434391,8.73318075,209.58,209.51,8.73318075]
[1731640434993,13.66218356,209.59,209.52,13.66218356]
[1731640435181,13.66218356,209.6,209.53,13.66218356]
[1731640435581,13.66218356,209.6,209.54,13.66218356]
[1731640437602,13.66218356,209.61,209.54,13.66218356]
[1731640437793,13.66218356,209.62,209.55,13.66218356]
[1731640439295,18.43278356,209.62,209.55,13.66218356]
[1731640439495,13.66218356,209.63,209.56,13.66218356]
[1731640439685,33.66218356,209.62,209.55,13.66218356]
[1731640442088,13.66218356,209.61,209.54,13.66218356]
[1731640444782,161.6,209.67,209.56,0.12549]
[1731640444995,13.66218356,209.67,209.6,13.66218356]
[1731640445676,13.66218356,209.66,209.59,13.66218356]
[1731640445893,13.66218356,209.65,209.58,13.66218356]
[1731640447098,13.66218356,209.66,209.59,13.66218356]
[1731640448195,13.66218356,209.65,209.53,15.8276]
[1731640448380,13.66218356,209.65,209.58,13.66218356]
[1731640449297,13.66218356,209.66,209.59,13.66218356]
[1731640449898,4.7689,209.69,209.58,13.66218356]
[1731640449899,13.66218356,209.65,209.58,13.66218356]
[1731640450073,4.7689,209.69,209.53,15.8276]
[1731640450074,23.776884,209.68,209.54,13.66218356]
[1731640450280,13.66218356,209.61,209.54,13.66218356]
[1731640450689,13.66218356,209.6,209.54,13.66218356]
[1731640452004,13.66218356,209.62,209.55,13.66218356]
[1731640452184,20.0,209.63,209.57,13.66218356]
[1731640454001,13.66218356,209.64,209.57,13.66218356]
[1731640455177,13.66218356,209.65,209.58,13.66218356]
[1731640455984,13.66218356,209.64,209.57,13.66218356]
[1731640456795,8.73811002,209.64,209.57,8.73811002]
[1731640458709,8.73811002,209.65,209.58,8.73811002]
[1731640458911,8.73811002,209.67,209.6,8.73811002]
[1731640459218,8.73811002,209.66,209.59,8.73811002]
[1731640460199,8.73811002,209.65,209.53,15.8276]
[1731640460388,8.73811002,209.61,209.55,8.73811002]
[1731640460914,8.73811002,209.58,209.53,15.8276]
[1731640461118,8.73811002,209.56,209.53,15.8276]
[1731640461610,8.73811002,209.55,209.53,15.8276]
[1731640464935,8.73811002,209.56,209.53,15.8276]
[1731640465425,8.73811002,209.57,209.53,15.8276]
[1731640466719,8.73811002,209.58,209.53,15.8276]
[1731640467928,4.7703,209.63,209.55,8.73811002]
[1731640468230,8.73811002,209.61,209.54,8.73811002]
[1731640471136,35.05244008,209.7,209.59,8.73811002]
[1731640471137,8.73811002,209.66,209.59,8.73811002]
[1731640471305,167.944,209.76,209.63,8.73811002]
[1731640471507,8.73811002,209.7,209.63,8.73811002]
[1731640472325,8.73811002,209.69,209.63,8.73811002]
[1731640472513,8.73811002,209.67,209.56,15.7032]
[1731640472704,8.73811002,209.65,209.58,8.73811002]
[1731640473027,8.73811002,209.66,209.59,8.73811002]
[1731640474527,8.73811002,209.66,209.6,8.73811002]
[1731640477415,8.73811002,209.7,209.63,8.73811002]
[1731640477619,20.0,209.69,209.63,8.73811002]
[1731640478235,28.73811002,209.69,209.63,8.73811002]
[1731640478728,20.0,209.69,209.63,8.73811002]
[1731640478913,13.50691002,209.7,209.63,8.73811002]
[1731640479114,20.0,209.69,209.63,8.73811002]
[1731640480642,33.50701002,209.69,209.62,8.73811002]
[1731640485722,13.50671002,209.71,209.63,8.73811002]
[1731640485931,8.73811002,209.7,209.63,8.73811002]
[1731640486420,20.0,209.7,209.63,8.73811002]
[1731640487442,13.50691002,209.7,209.63,8.73811002]
[1731640489638,8.73811002,209.7,209.63,8.73811002]
[1731640490046,4.7682,209.73,209.66,8.73811002]
[1731640490235,13.50591002,209.74,209.66,8.73811002]
[1731640490751,13.50591002,209.74,209.67,8.73811002]
[1731640492035,8.73811002,209.73,209.66,8.73811002]
[1731640492225,8.73811002,209.7,209.64,15.9913]
[1731640492641,8.73811002,209.69,209.64,15.9913]
[1731640493022,8.73811002,209.7,209.64,15.9913]
[1731640493238,8.73811002,209.69,209.64,15.9913]
[1731640493434,13.50711002,209.69,209.64,15.9913]